Workbook

Sheet NSU
B1: Hanne Asikainen | E1: 25.1.1981
B2: SUPERPESIS | E2: Runkosarja | I2: Kärkilyönnit (KL), pesänvälit | Q2: Runkosarja | U2: Ylempi loppusarja | Z2: Alempi loppusarja | AG2: Arvo-ottelut ja mitalit
B3: Vuosi | C3: Sija | D3: Seura | E3: OTT | F3: KUN | G3: LÖI | H3: TOI | I3: KL | J3: 0 > 1 | K3: 1 > 2 | L3: 2 > 3 | M3: 3 > k | N3: KL-% | P3: LÖI | Q3: TOI | R3: L+T | S3: KL | U3: OTT | V3: KUN | W3: LÖI | X3: TOI | Y3: KL | Z3: OTT | AA3: KUN | AB3: LÖI | AC3: TOI | AD3: KL | AE3: IL | AF3: LL | AG3: Halli | AH3: K | AI3: H | AJ3: P
B4: 1996 | C4: 5. | D4: ViU 2 | F4: suomensarja
B5: 1997 | C5: 7. | D5: ViU | E5: 22 | F5: 1 | G5: 8 | H5: 5 | I5: 36 | J5: 16 | K5: 4 | L5: 7 | M5: 9 | N5: 43.4 % | O5: 83
B6: 1998 | C6: 5. | D6: ViU | E6: 22 | F6: 2 | G6: 25 | H6: 7 | I6: 56 | J6: 6 | K6: 4 | L6: 19 | M6: 27 | N6: 48.7 % | O6: 115
B7: 1999 | C7: 9. | D7: ViU | E7: 22 | F7: 1 | G7: 45 | H7: 3 | I7: 72 | J7: 2 | K7: 5 | L7: 19 | M7: 46 | N7: 45.1 % | O7: 160 | P7: 6.
B8: 2000 | C8: 2. | D8: Lippo | E8: 22 | F8: 2 | G8: 25 | H8: 16 | I8: 95 | J8: 42 | K8: 16 | L8: 10 | M8: 27 | N8: 55.6 % | O8: 171 | U8: 9 | V8: 0 | W8: 6 | X8: 1 | Y8: 19 | AG8: 1 | AI8: 1
B9: 2001 | C9: 2. | D9: Kiri | E9: 24 | F9: 2 | G9: 21 | H9: 22 | I9: 73 | J9: 23 | K9: 12 | L9: 15 | M9: 23 | N9: 49.7 % | O9: 147 | U9: 10 | V9: 0 | W9: 7 | X9: 3 | Y9: 23 | AI9: 1
B10: 2002 | C10: 8. | D10: Pesä Ysit | E10: 24 | F10: 1 | G10: 35 | H10: 9 | I10: 95 | J10: 4 | K10: 20 | L10: 35 | M10: 36 | N10: 54.9 % | O10: 173 | T10: =PRODUCT(L10/S10) ->  | U10: 3 | V10: 0 | W10: 2 | X10: 0 | Y10: 11
B11: 2003 | C11: 5. | D11: ViU | F11: ykköspesis | O11: 0
B12: 2004 | C12: 4. | D12: ViU | F12: ykköspesis | O12: 0
B13: Yhteensä | E13: =SUM(E4:E12) -> 136 | F13: 9 | G13: 159 | H13: 62 | I13: 427 | J13: 93 | K13: 61 | L13: 105 | M13: 168 | N13: =PRODUCT(I13/O13) -> 50.3 % | O13: =SUM(O5:O12) -> 849 | U13: =SUM(U4:U12) -> 22 | V13: 0 | W13: 15 | X13: 4 | Y13: 53 | Z13: 0 | AA13: 0 | AB13: 0 | AC13: 0 | AD13: 0 | AE13: 0 | AF13: 0 | AG13: 1 | AH13: 0 | AI13: 2 | AJ13: 0
B14: Pesispörssi | D14: =SUM(F13:H13)+((I13-F13-G13)/3)+(E13/3)+(AE13*25)+(AF13*25)+(AG13*10)+(AH13*25)+(AI13*20)+(AJ13*15) -> 411.7
B16: URA SUPERISSA | E16: OTT | F16: KUN | G16: LÖI | H16: TOI | I16: KL | K16: ka/L | L16: ka/T | M16: ka/KL | N16: K - % | P16: ENSIMMÄISET
B17: Runkosarja | E17: =PRODUCT(E13) -> 136 | F17: =PRODUCT(F13) -> 9 | G17: =PRODUCT(G13) -> 159 | H17: =PRODUCT(H13) -> 62 | I17: =PRODUCT(I13) -> 427 | K17: =PRODUCT((F17+G17)/E17) -> 1.24 | L17: =PRODUCT(H17/E17) -> 0.46 | M17: =PRODUCT(I17/E17) -> 3.14 | N17: =PRODUCT(N13) -> 50.3 % | O17: =PRODUCT(O13) -> 849 | P17: Ottelu | R17: 15.05. 1997 ViU - Roihu 2-0 (8-4, 4-0) | AA17: 1. ottelu | AC17: 16 v 3 kk 20 pv
B18: Ylempi loppusarja | E18: =PRODUCT(U13) -> 22 | F18: =PRODUCT(V13) -> 0 | G18: =PRODUCT(W13) -> 15 | H18: =PRODUCT(X13) -> 4 | I18: =PRODUCT(Y13) -> 53 | K18: =PRODUCT((F18+G18)/E18) -> 0.68 | L18: =PRODUCT(H18/E18) -> 0.18 | M18: =PRODUCT(I18/E18) -> 2.41 | N18: =PRODUCT(I18/O18) -> 46.1 % | O18: 115 | P18: Lyöty | R18: 01.06. 1997 Manse - ViU 1-2 (4-3, 1-2, 0-1) | AA18: 4. ottelu | AC18: 16 v 4 kk 6 pv
B19: Alempi loppusarja | O19: 0 | P19: Tuotu | R19: 01.06. 1997 Manse - ViU 1-2 (4-3, 1-2, 0-1) | AA19: 4. ottelu | AC19: 16 v 4 kk 6 pv
B20: KAIKKI | E20: =SUM(E17:E19) -> 158 | F20: =SUM(F17:F19) -> 9 | G20: =SUM(G17:G19) -> 174 | H20: =SUM(H17:H19) -> 66 | I20: =SUM(I17:I19) -> 480 | K20: =PRODUCT((F20+G20)/E20) -> 1.16 | L20: =PRODUCT(H20/E20) -> 0.42 | M20: =PRODUCT(I20/E20) -> 3.04 | N20: =PRODUCT(I20/O20) -> 49.8 % | O20: =SUM(O17:O19) -> 964 | P20: Kunnari | R20: 01.06. 1997 Manse - ViU 1-2 (4-3, 1-2, 0-1) | AA20: 4. ottelu | AC20: 16 v 4 kk 6 pv
B22: Seurat | D22: ViU = Viinijärven Urheilijat (1914)
D23: Lippo = Oulun Lippo (1955)
D24: Kiri = Jyväskylän Kiri (1930)
D25: Pesä Ysit (1976)

Sheet Arvo-ottelut
B1: ITÄ - LÄNSI - KORTTI
B2: Hanne Asikainen | C2: 25.1.1981
B3: B-TYTÖT | C3: Itä - Länsi, tulos | D3: Joukkue | E3: Seura | G3: V | H3: T | I3: H | J3: Up. | K3: Lj. | L3: Palk. | M3: O | N3: K | O3: L | P3: T | Q3: KL | R3: 1 | S3: 2 | T3: 3 | U3: k | V3: KL-% | W3: Pelinjohtaja | X3: Yleisöä
B4: 17.08. 1997 Hyvinkää | C4: 0-2 (0-6, 6-7) | D4: Itä | E4: ViU | I4: 1 | K4: jok | M4: 1 | P4: 1 | Q4: 3/7 | R4: 3/5 | S4: 0/1 | T4: 0/1 | V4: 42.9 % | W4: Pertti Laakso | X4: 2652
B5: 28.06. 1998 Sotkamo | C5: 2-0 (5-3, 10-5) | D5: Itä | E5: ViU | G5: 1 | K5: jok | M5: 1 | O5: 2 | Q5: 5/8 | R5: 2/4 | S5: 1/2 | U5: 2/2 | V5: 62.5 % | W5: Mika Sirviö | X5: 3112
B6: 04.07. 1999 Sotkamo | C6: 2-1 (4-2, 3-4, x-x, 4-1) | D6: Itä | E6: ViU | G6: 1 | J6: 2k | K6: 5 | L6: I p | M6: 1 | O6: 1 | Q6: 5/8 | S6: 1/1 | T6: 3/3 | U6: 1/4 | V6: 62.5 % | W6: Tuula Tauriainen | X6: 2114
B7: Yhteensä | G7: 2 | I7: 1 | M7: 3 | O7: 3 | P7: 1 | Q7: 13/23 | R7: 5/9 | S7: 2/4 | T7: 3/4 | U7: 3/6 | V7: 56.5 %
